Cogmind - Beta 15 @@@ ROGUE MODE // 2025.08.02 @ 15:14:41 Player: amhumam Result: Destroyed by S-27 Virus with Autogun Performance ------------- Evolutions (6) 3000 Regions Visited (22) 4400 Robots Destroyed (197) 985 Value Destroyed (9075) 9075 Prototype IDs (54) 1080 Alien Tech Used (2) 400 Bonus (3178) 3178 TOTAL SCORE: 22118 Bonus ------- High Alert Combat Kills 449 Follower Combat Kills 629 Entered Garrisons 400 Entered DSFs 500 Aligned with FarCom 300 Met Data Miner 300 Acquired ECA 300 Met Zhirov 300 Cogmind --------- Core Integrity 0/1150 Matter 274/300 Energy 98/100 System Corruption 0% Temperature Cool (0) Movement Core (100) Ox1 Location -4/Upper Caves Parts ------- > --- POWER (1) -------- (None) > --- PROPULSION (6) --- (None) > --- UTILITY (9) ------ Advanced Terrain Scan Processor > --- WEAPON (3) ------- KE Penetrator > --- INVENTORY (5) ---- Superbattery (1500) Encrypted Comm Array Advanced Assault Cannon Makeshift Hammer Peak State ------------ > --- POWER ------------ Cold Fusion Reactor > --- PROPULSION ------- Advanced Treads Improved Medium Treads Biometal Medium Treads Armored Heavy Treads > --- UTILITY ---------- Advanced Heat Sink Huge Storage Unit Advanced Terrain Scanner Advanced Terrain Scan Processor Experimental Core Shielding Heavy Armor Plating Improved Medium Armor Plating > --- WEAPON ----------- Heavy Laser Advanced Plasma Cannon Fusion Bomb Launcher > --- INVENTORY -------- Cold Fusion Reactor Cold Fusion Reactor Advanced Heavy Treads Improved Heavy Siege Treads Improved Cooling System Superbattery Improved Matter Compressor Encrypted Comm Array Improved Weapon Cycler Improved Weapon Cycler System Restoration Module Transdimensional Reconstructor Heavy Laser Advanced Plasma Cannon Advanced Plasma Cannon Advanced Plasma Cannon Heavy Machine Gun KE Penetrator Hypervelocity Railgun Advanced Assault Cannon Mass Driver Enhanced Gauss Cannon Lance [Rating: 106] Favorites ----------- Power Cold Fusion Reactor Engine Light Ion Engine Power Core Light Nuclear Core Reactor Cold Fusion Reactor Propulsion Light Treads Treads Light Treads Leg Advanced Myomer Leg Wheel Wheel Utility Advanced Heat Sink Device Advanced Heat Sink Storage Huge Storage Unit Processor Advanced Terrain Scan Processor Hackware System Shield Protection Improved Medium Armor Plating Weapon Heavy Machine Gun Energy Gun Heavy Laser Energy Cannon Heavy Plasma Cannon Ballistic Gun Heavy Machine Gun Ballistic Cannon Heavy Flak Cannon Launcher Grenade Launcher Slashing Weapon Ripper Build | -11 -10 -10 -10 -9 -8 -8 -8 -7 -7 -6 -6 -6 -6 -6 -5 -5 -5 -5 -5 -4 -4 -4 ------- Run | Yrd Mat Min Exi Min Mat Gar Mat Fac DSF Fac Gar Fac Low Dat Pro Fac Upp Upp Zhi Pro Fac Upp Slots Evolved 12 | . . . . . 4 . . 2 . 2 . . . . . 2 . . . . 2 . Power . | . . . . . . . . . . . . . . . . . . . . . . . Propulsion 4 | . . . . . 2 . . . . . . . . . . 1 . . . . 1 . Utility 7 | . . . . . 2 . . 2 . 1 . . . . . 1 . . . . 1 . Weapon 1 | . . . . . . . . . . 1 . . . . . . . . . . . . Parts Attached 159 | 6 8 5 . . 24 8 4 3 11 33 13 11 . . 3 5 2 3 5 5 9 1 Power 18 | 1 2 1 . . 3 2 . . 1 4 . 1 . . . . . . 1 1 1 . Engine 4 | 1 2 . . . . . . . 1 . . . . . . . . . . . . . Core 10 | . . 1 . . 3 2 . . . 4 . . . . . . . . . . . . Reactor 4 | . . . . . . . . . . . . 1 . . . . . . 1 1 1 . Propulsion 38 | 2 . 2 . . 8 3 3 . 4 6 3 2 . . . 1 . . 1 . 3 . Treads 25 | 2 . 1 . . 3 2 2 . 4 4 3 2 . . . 1 . . . . 1 . Leg 1 | . . . . . . . . . . . . . . . . . . . 1 . . . Wheel 12 | . . 1 . . 5 1 1 . . 2 . . . . . . . . . . 2 . Hover . | . . . . . . . . . . . . . . . . . . . . . . . Flight . | . . . . . . . . . . . . . . . . . . . . . . . Utility 61 | 1 3 1 . . 7 1 1 1 4 15 5 6 . . 2 3 1 2 3 1 4 . Device 20 | . . . . . 2 . . . . 5 3 2 . . 1 2 1 1 . 1 2 . Storage 9 | 1 1 . . . 1 . . . . 3 . 1 . . . . . . 2 . . . Processor 6 | . . . . . . . . . . 3 . 1 . . 1 1 . . . . . . Hackware 1 | . . . . . . . . . . 1 . . . . . . . . . . . . Protection 25 | . 2 1 . . 4 1 1 1 4 3 2 2 . . . . . 1 1 . 2 . Artifact . | . . . . . . . . . . . . . . . . . . . . . . . Weapon 42 | 2 3 1 . . 6 2 . 2 2 8 5 2 . . 1 1 1 1 . 3 1 1 Energy Gun 7 | . . . . . 1 1 . . . 3 . 1 . . . . . . . . 1 . Energy Cannon 14 | . 1 . . . 2 . . 1 2 2 1 1 . . . . 1 . . 3 . . Ballistic Gun 13 | 2 2 . . . 2 . . . . 2 3 . . . 1 . . . . . . 1 Ballistic Cannon 3 | . . . . . . 1 . . . 1 1 . . . . . . . . . . . Launcher 3 | . . 1 . . 1 . . . . . . . . . . . . 1 . . . . Special Weapon . | . . . . . . . . . . . . . . . . . . . . . . . Impact Weapon . | . . . . . . . . . . . . . . . . . . . . . . . Slashing Weapon 2 | . . . . . . . . 1 . . . . . . . 1 . . . . . . Piercing Weapon . | . . . . . . . . . . . . . . . . . . . . . . . Special Melee Weapon . | . . . . . . . . . . . . . . . . . . . . . . . Unidentified Prototypes 12 | . . . . . 1 . . . . 2 . 1 . . . 1 . . 6 . . 1 Parts Lost 88 | . 1 2 . . 12 7 3 . 5 22 5 3 . . 1 . . . . 9 18 . Power 10 | . 1 . . . 3 2 . . 1 2 . . . . . . . . . . 1 . Propulsion 28 | . . 1 . . 5 4 2 . 3 4 . . . . . . . . . 4 5 . Utility 32 | . . 1 . . 3 1 1 . . 10 3 2 . . . . . . . 4 7 . Weapon 18 | . . . . . 1 . . . 1 6 2 1 . . 1 . . . . 1 5 . Highest Loss Streak 16 | . 1 1 . . 4 5 1 . 4 13 3 1 . . 1 . . . . 4 16 . To Critical Strikes 2 | . . . . . . . . . . . . . . . . . . . . . 2 . Average Backups 15 | 2 9 9 10 10 11 13 14 14 14 13 16 22 21 21 20 18 22 22 22 19 17 4 Power 1 | . . 1 1 1 1 1 1 2 1 1 3 2 2 2 2 2 2 2 2 1 1 . Propulsion 1 | 1 3 1 2 1 . . . 1 2 2 2 2 3 3 3 2 2 2 2 . . . Utility 5 | . 2 2 2 3 3 3 3 3 2 4 5 9 8 8 7 5 8 7 6 4 4 1 Weapon 6 | . 3 4 4 4 6 8 9 8 7 4 4 7 8 8 7 8 10 10 11 9 9 2 Tool/Special . | . . . . . . . . . . . . . . . . . . . . . . . Unused Backups 45 | . 7 2 1 . 1 . 1 1 3 6 2 6 . . . . 2 . 3 . 7 3 Power 7 | . . 1 . . . . . . . 1 . 5 . . . . . . . . . . Propulsion 7 | . 4 . . . . . . . 1 1 1 . . . . . . . . . . . Utility 12 | . 3 . . . . . 1 . . 2 1 . . . . . . . 3 . 1 1 Weapon 19 | . . 1 1 . 1 . . 1 2 2 . 1 . . . . 2 . . . 6 2 Tool/Special . | . . . . . . . . . . . . . . . . . . . . . . . Average Slot Usage (%) 88 | . 94 99 100 100 91 92 95 91 88 86 79 90 93 93 93 91 94 88 86 83 68 5 Engine 1 | . 14 . . . . . . . 4 . . . . . . . . . . . . . Core 4 | . . 13 14 14 8 7 9 7 1 5 6 1 . . . . . . . . . . Reactor 1 | . . . . . . . . . . . . 4 6 6 6 5 5 5 5 4 4 . Treads 17 | . 28 26 14 14 13 16 15 15 24 14 13 17 20 20 20 22 23 23 22 17 7 . Wheel 5 | . . . 14 14 18 15 16 15 1 11 . . . . . . . . . . 7 . Device 14 | . . . . . 12 18 18 15 15 11 19 20 20 20 20 17 23 17 16 26 23 . Storage 7 | . 14 14 14 14 9 9 9 7 7 6 6 6 6 6 6 5 5 5 5 5 4 . Processor 2 | . . . . . . . . . . 5 . 5 6 6 6 10 11 5 5 5 5 5 Hackware 2 | . . . . . . . . . . 1 6 6 6 6 6 4 . . . . . . Protection 8 | . 8 14 14 14 11 7 9 14 16 7 6 6 6 6 6 5 5 10 11 2 . . Energy Gun 3 | . . . . . 6 8 5 6 . 3 6 2 6 6 6 4 5 5 5 3 . . Energy Cannon 7 | . 8 14 14 14 7 8 7 . 7 7 2 9 6 6 6 5 5 5 5 7 9 . Ballistic Gun 5 | . 19 7 . . 2 . . . . 4 8 6 6 6 6 5 5 4 . 1 . . Launcher 1 | . . 6 14 14 1 . 4 . 5 2 . . . . . . . . 5 2 4 . Peak Build Rating 106 | 6 11 13 13 14 29 29 30 33 48 62 90 90 87 87 89 100 103 103 106 104 102 12 Average Rating 58 | 4 9 12 12 13 25 26 27 32 41 52 78 88 87 87 88 93 102 98 102 96 84 6 On Entrance 52 | . 6 11 13 13 14 29 27 27 33 48 52 90 87 87 87 89 100 103 101 104 82 7 Naked Turns . | . . . . . . . . . . . . . . . . . . . . . . . Heaviest Build 148 | 11 29 29 29 29 42 40 45 49 62 74 121 128 122 122 122 123 123 142 148 148 132 . Greatest Support 175 | 40 40 40 10 10 40 22 40 26 104 104 135 135 125 125 125 147 147 147 147 175 93 3 Greatest Overweight (x) 6 | . . 2 2 2 3 3 4 1 2 6 . 1 . . . 1 . . 1 1 4 . Average Overweight (x) . | . . . 2 2 . 1 1 1 . 1 . . . . . . . . . . 2 . Largest Inventory Capacity 25 | 8 10 10 10 10 15 15 15 15 15 25 25 25 25 25 25 25 25 25 25 25 25 5 Average Capacity 18 | 7 9 10 10 10 13 15 15 15 15 15 23 25 25 25 25 25 25 25 25 25 23 5 Most Carried 25 | 6 10 10 10 10 15 15 15 15 15 15 25 25 24 24 24 25 25 25 25 25 22 5 Average Carried 16 | 2 9 9 9 10 11 13 14 14 14 13 18 24 24 24 22 21 24 24 24 20 17 4 Final Capacity 25 | 8 10 10 10 10 15 15 15 15 15 15 25 25 25 25 25 25 25 25 25 25 5 5 Final Carried 25 | 6 10 10 10 10 14 14 15 15 15 13 25 24 24 24 23 25 25 25 25 17 5 4 Class Distribution -------------------- 27% | Scavenger-Tank 24% | Mutant 17% | Scavenger-Mutant 16% | Tank 7% | Skirmisher 6% | Scavenger-Skirmisher Dominant Class ---------------- Mutant | -10/Materials Mutant | -10/Mines Mutant | -10/Exiles Mutant | -9/Mines Scavenger-Mutant | -8/Materials Scavenger-Mutant | -8/Garrison Scavenger-Mutant | -8/Materials Scavenger-Mutant | -7/Factory Mutant | -7/DSF Tank | -6/Factory Scavenger-Tank | -6/Garrison Scavenger-Tank | -6/Factory Scavenger-Tank | -6/Lower Caves Scavenger-Tank | -6/Data Miner Tank | -5/Proximity Caves Skirmisher | -5/Factory Tank | -5/Upper Caves Tank | -5/Upper Caves Tank | -5/Zhirov Scavenger-Skirmisher | -4/Proximity Caves Skirmisher | -4/Factory Mutant | -4/Upper Caves Resources | -11 -10 -10 -10 -9 -8 -8 -8 -7 -7 -6 -6 -6 -6 -6 -5 -5 -5 -5 -5 -4 -4 -4 ----------- Run | Yrd Mat Min Exi Min Mat Gar Mat Fac DSF Fac Gar Fac Low Dat Pro Fac Upp Upp Zhi Pro Fac Upp Matter Collected 5079 | 236 397 306 . 49 594 119 115 . 202 884 816 312 . . 34 114 30 97 250 442 72 10 Remotely . | . . . . . . . . . . . . . . . . . . . . . . . Salvage Created 7728 | . 448 223 . . 956 330 328 . 370 1074 1015 927 . . 58 180 . 352 . 1118 308 41 Parts 385 | . 25 16 . . 63 12 26 . 23 59 45 30 . . 3 9 . 13 . 41 14 6 Haulers Intercepted 1 | . 1 . . . . . . . . . . . . . . . . . . . . . Recyclers Shooed 3 | . . . . . . . . . . 3 . . . . . . . . . . . . Parts Field Recycled . | . . . . . . . . . . . . . . . . . . . . . . . Retrieved Matter . | . . . . . . . . . . . . . . . . . . . . . . . Parts Self-Destructed 57 | . . . . . . . . . . . . . . . 3 . . 13 . 40 . 1 Prevented 2 | . . . . . . . . . . . . . . . . . . . . 2 . . Kills | -11 -10 -10 -10 -9 -8 -8 -8 -7 -7 -6 -6 -6 -6 -6 -5 -5 -5 -5 -5 -4 -4 -4 ------- Run | Yrd Mat Min Exi Min Mat Gar Mat Fac DSF Fac Gar Fac Low Dat Pro Fac Upp Upp Zhi Pro Fac Upp Combat Hostiles Destroyed 195 | . 12 16 . . 31 9 10 . 9 24 20 16 . . 1 3 . 11 . 24 7 2 Guns 94 | . 10 5 . . 20 5 4 . . 10 18 9 . . . 2 . 5 . 4 . 2 Cannons 56 | . 2 8 . . 7 2 1 . 3 6 1 5 . . 1 1 . 2 . 11 6 . AOE 32 | . . 3 . . 3 1 5 . 6 6 . . . . . . . 3 . 5 . . Classes Destroyed 19 | . 6 1 . . 3 . 2 . 1 2 2 2 . . . . . . . . . . Worker 5 | . . . . . 2 . . . . 2 . 1 . . . . . . . . . . Builder 2 | . . . . . . . . . . 2 . . . . . . . . . . . . Tunneler 2 | . 1 1 . . . . . . . . . . . . . . . . . . . . Hauler 1 | . 1 . . . . . . . . . . . . . . . . . . . . . Recycler 1 | . . . . . . . . . . . . 1 . . . . . . . . . . Operator 1 | . . . . . . . 1 . . . . . . . . . . . . . . . Watcher 1 | . 1 . . . . . . . . . . . . . . . . . . . . . Swarmer 61 | . 6 3 . . 9 . 3 . 3 2 8 3 . . . . . 8 . 10 4 2 Grunt 60 | . 4 2 . . 11 4 1 . 5 8 8 6 . . . 3 . 2 . 6 . . Brawler 2 | . . . . . . . . . . . . 1 . . . . . . . 1 . . Duelist 7 | . . . . . . . . . . . 1 2 . . . . . . . 4 . . Sentry 28 | . . . . . 10 4 4 . . 4 2 . . . . . . 1 . 1 2 . Specialist 4 | . . . . . . . 2 . . 2 . . . . . . . . . . . . Hunter 7 | . . . . . 1 1 . . . 4 . . . . . . . . . . 1 . Programmer 9 | . . . . . . . . . . 2 . 4 . . 1 . . . . 2 . . Heavy 3 | . . . . . . . . . 1 2 . . . . . . . . . . . . Behemoth 1 | . . . . . . . . . . . 1 . . . . . . . . . . . Subdweller 2 | . 2 . . . . . . . . . . . . . . . . . . . . . Assembled 11 | . . 11 . . . . . . . . . . . . . . . . . . . . Best Kill Streak 9 | . 4 5 . . 6 3 3 . 3 9 4 9 . . 1 1 . 4 . 8 4 2 Combat Bots Only 9 | . 4 5 . . 6 3 3 . 3 9 4 7 . . 1 1 . 4 . 8 4 2 Max Kills in Single Turn 5 | . 1 2 . . 2 1 2 . 1 5 3 2 . . 1 1 . 4 . 2 1 2 Gunslinging 1 | . . . . . . . . . . . 1 . . . . . . . . . . . Exploded 3 | . . 1 . . 1 1 2 . 1 3 . . . . . . . 3 . 2 . . Melee . | . . . . . . . . . . . . . . . . . . . . . . . Uniques/NPCs Destroyed . | . . . . . . . . . . . . . . . . . . . . . . . Combat | -11 -10 -10 -10 -9 -8 -8 -8 -7 -7 -6 -6 -6 -6 -6 -5 -5 -5 -5 -5 -4 -4 -4 -------- Run | Yrd Mat Min Exi Min Mat Gar Mat Fac DSF Fac Gar Fac Low Dat Pro Fac Upp Upp Zhi Pro Fac Upp Hostile Shots Fired 1423 | . 74 40 . . 156 68 34 . 51 277 140 90 12 . 4 4 . 53 . 128 257 35 Missed 368 | . 20 8 . . 41 21 10 . 21 63 26 21 5 . 1 2 . 13 . 21 80 15 Hits 1055 | . 54 32 . . 115 47 24 . 30 214 114 69 7 . 3 2 . 40 . 107 177 20 Melee 26 | . . 4 . . . . . . . . 5 5 . . . . . . . 12 . . Projectile 1029 | . 54 28 . . 115 47 24 . 30 214 109 64 7 . 3 2 . 40 . 95 177 20 AOE 1 | . . . . . . . . . . . . . . . . . . . . . 1 . Critical Strikes 52 | . . . . . 8 5 1 . 5 8 1 4 . . . . . 1 . 13 6 . Part Disruptions 1 | . . . . . . . . . . . . . . . . . . . . 1 . . Damage Taken 18883 | . 644 531 . . 1697 711 376 . 797 4487 1989 1237 83 . 59 38 . 731 . 2277 2883 343 Core 2670 | . 112 137 . . 213 121 8 . 18 454 127 117 10 . . 18 . 20 . 171 895 249 Absorbed by Shields . | . . . . . . . . . . . . . . . . . . . . . . . Reduced by Siege Mode 855 | . . . . . . . . . . . 461 56 . . . . . 7 . 269 62 . Regen/Repaired (Parts) 287 | . . . . . . . . . . . . . . . . 287 . . . . . . Core Remaining (%) 54 | 100 . . . . . . 37 . 97 . . . . . 16 . . . . 79 . . Volleys Fired 618 | . 32 34 . . 92 51 27 5 28 52 108 46 . . 1 12 1 13 . 54 58 4 Largest 3 | . 2 2 . . 2 2 2 1 2 3 3 3 . . 3 3 1 3 . 3 3 1 Hottest 265 | . 91 98 . . 150 150 150 75 160 198 215 210 . . 189 189 90 219 . 265 207 33 Shots Fired 1215 | . 61 67 . . 168 75 40 5 50 127 201 131 . . 3 24 1 39 . 157 62 4 Gun 605 | . 37 23 . . 88 21 9 . . 67 158 74 . . 2 12 . 25 . 80 5 4 Cannon 563 | . 24 34 . . 69 51 27 5 41 55 43 57 . . 1 12 1 13 . 73 57 . Launcher 47 | . . 10 . . 11 3 4 . 9 5 . . . . . . . 1 . 4 . . Special . | . . . . . . . . . . . . . . . . . . . . . . . Kinetic 373 | . 37 23 . . 52 2 . . . 42 113 44 . . 1 6 . 12 . 35 2 4 Thermal 795 | . 24 34 . . 105 70 36 5 41 80 88 87 . . 2 18 1 26 . 118 60 . Explosive 47 | . . 10 . . 11 3 4 . 9 5 . . . . . . . 1 . 4 . . Electromagnetic . | . . . . . . . . . . . . . . . . . . . . . . . Robot Hit Streak 34 | . 8 5 . . 19 34 15 . 9 23 33 17 . . 4 8 . 11 . 27 9 3 Robot Miss Streak 8 | . 5 3 . . 8 4 4 . 6 7 3 3 . . . 4 . 3 . 3 2 1 Penetration Max 1 | . . . . . . . . . . 1 1 . . . . . . . . . . 1 Secondary Targets 6 | . . . . . 1 . . . . 2 3 . . . . . . . . . . . Max Gunslinging Chain 1 | . . . . . 1 . . . . 1 1 . . . . . . . . . . . Capacitor 53 | . . . . . . . . . . . . . . . . . . . . . 53 . Shots Hit Robots 748 | . 36 40 . . 108 39 21 . 29 89 114 88 . . 2 10 . 24 . 101 44 3 Core Hits 441 | . 20 26 . . 89 33 26 . 23 78 48 29 . . 1 6 . 12 . 36 12 2 Critical Kills 12 | . . . . . . 1 . . . 1 5 2 . . . . . 1 . 1 . 1 Critical Parts Destroyed 11 | . . . . . . . . . . 1 8 . . . . . . . . . 2 . Critical Strikes 37 | . . . . . . 1 . . . 6 20 2 . . . . . 2 . 2 3 1 Burn 14 | . . . . . . . . . . 4 7 . . . . . . 1 . 1 1 . Meltdown 5 | . . . . . . 1 . . . 1 . 1 . . . . . 1 . 1 . . Destroy 18 | . . . . . . . . . . 1 13 1 . . . . . . . . 2 1 Melee Attacks 5 | . . . . . . . . 5 . . . . . . . . . . . . . . Impact . | . . . . . . . . . . . . . . . . . . . . . . . Slashing 5 | . . . . . . . . 5 . . . . . . . . . . . . . . Piercing . | . . . . . . . . . . . . . . . . . . . . . . . Sneak Attacks . | . . . . . . . . . . . . . . . . . . . . . . . Combat Hostiles . | . . . . . . . . . . . . . . . . . . . . . . . Follow-up Attacks . | . . . . . . . . . . . . . . . . . . . . . . . Damage Inflicted 21841 | . 560 900 . . 2806 1165 809 . 1339 3631 1960 2662 . . 64 265 . 867 . 3429 1302 82 Guns 8660 | . 355 233 . . 1577 430 212 . . 1144 1723 1220 . . 23 105 . 349 . 1157 50 82 Cannons 8410 | . 205 370 . . 691 403 235 . 587 1063 237 1442 . . 41 160 . 267 . 1464 1245 . Explosions 4764 | . . 297 . . 538 332 362 . 752 1424 . . . . . . . 251 . 808 . . Melee . | . . . . . . . . . . . . . . . . . . . . . . . Ramming 7 | . . . . . . . . . . . . . . . . . . . . . 7 . Kinetic 4767 | . 355 233 . . 793 52 . . . 757 1036 777 . . . 67 . 137 . 466 12 82 Thermal 12303 | . 205 370 . . 1475 781 447 . 587 1450 924 1885 . . 64 198 . 479 . 2155 1283 . Explosive 4764 | . . 297 . . 538 332 362 . 752 1424 . . . . . . . 251 . 808 . . Electromagnetic . | . . . . . . . . . . . . . . . . . . . . . . . Impact . | . . . . . . . . . . . . . . . . . . . . . . . Slashing . | . . . . . . . . . . . . . . . . . . . . . . . Piercing . | . . . . . . . . . . . . . . . . . . . . . . . Highest Corruption 4 | . . 3 3 3 . . . . . 4 . 1 1 1 1 . . . . 3 . . Average Corruption 2 | . . 3 3 3 . . . . . 3 . 1 1 1 1 . . . . 1 . . Corruption Purged 7 | . . . . . . . . . . 4 . . . . . . . . . 3 . . Corruption Blocked . | . . . . . . . . . . . . . . . . . . . . . . . Effects 40 | . . 12 2 3 . . . . . 16 . 3 . 1 2 . . . . 1 . . Message Errors 15 | . . 3 1 1 . . . . . 7 . 1 . . 1 . . . . 1 . . Matter Fused 8 | . . 1 1 1 . . . . . 4 . . . . 1 . . . . . . . Heat Flow Errors 3 | . . 3 . . . . . . . . . . . . . . . . . . . . Energy Discharges 2 | . . 1 . 1 . . . . . . . . . . . . . . . . . . Parts Rejected 2 | . . 1 . . . . . . . . . 1 . . . . . . . . . . Data Loss (minor) 8 | . . 2 . . . . . . . 4 . 1 . 1 . . . . . . . . Data Loss (major) 1 | . . 1 . . . . . . . . . . . . . . . . . . . . Misfires 1 | . . . . . . . . . . 1 . . . . . . . . . . . . Overload Shots . | . . . . . . . . . . . . . . . . . . . . . . . Overflow Damage 425 | . 1 4 . . 35 8 . . 37 117 . 97 . . . . . 3 . 92 31 . Projectiles 176 | . 1 4 . . . . . . . 15 . 97 . . . . . 3 . 25 31 . Explosions 249 | . . . . . 35 8 . . 37 102 . . . . . . . . . 67 . . Melee . | . . . . . . . . . . . . . . . . . . . . . . . Knockbacks 5 | . . . . . . 2 . . . 1 2 . . . . . . . . . . . Impact . | . . . . . . . . . . . . . . . . . . . . . . . Kinetic 5 | . . . . . . 2 . . . 1 2 . . . . . . . . . . . Secondary . | . . . . . . . . . . . . . . . . . . . . . . . Self-Inflicted Damage 250 | . . 74 . . 80 26 . . . 67 . . . . . . . . . . 3 . Shots 10 | . . 4 . . 3 1 . . . 2 . . . . . . . . . . . . Rammed 1 | . . . . . . . . . . . . . . . . . . . . . 1 . Targets Rammed 1 | . . . . . . . . . . . . . . . . . . . . . 1 . Kicked . | . . . . . . . . . . . . . . . . . . . . . . . Crushed . | . . . . . . . . . . . . . . . . . . . . . . . Highest Temperature 440 | . 399 303 . . 427 80 45 . 1 372 325 24 . . . 33 33 62 . 427 440 . Average Temperature 121 | . 131 101 . . 125 31 17 . 1 170 132 16 . . . 33 33 11 . 112 211 . Received Heat Transfer 3563 | . 234 97 . . 810 378 81 . 180 525 468 192 36 . . 18 . 162 . 304 60 18 Effects 28 | . 2 . . . 13 . . . . 4 3 . . . . . . . . 2 4 . Shutdowns 3 | . . . . . 3 . . . . . . . . . . . . . . . . . Energy Bleed 6 | . 1 . . . 4 . . . . . . . . . . . . . . 1 . . Interference 13 | . . . . . 4 . . . . 3 3 . . . . . . . . . 3 . Matter Decay 2 | . 1 . . . 1 . . . . . . . . . . . . . . . . . Short Circuit 2 | . . . . . . . . . . 1 . . . . . . . . . 1 . . Damage (minor) 2 | . . . . . 1 . . . . . . . . . . . . . . . 1 . Siege Activations 21 | . . . . . . . . . . . 5 7 . . 1 1 . 1 . 3 3 . Total Turns 609 | . . . . . . . . . . . 260 179 . . 4 7 . 16 . 109 34 . Longest Duration 143 | . . . . . . . . . . . 143 58 . . 4 7 . 16 . 86 12 . Martial Activations . | . . . . . . . . . . . . . . . . . . . . . . . Shielding Activations . | . . . . . . . . . . . . . . . . . . . . . . . Robots Disrupted . | . . . . . . . . . . . . . . . . . . . . . . . Combat Hostiles . | . . . . . . . . . . . . . . . . . . . . . . . Robots Corrupted . | . . . . . . . . . . . . . . . . . . . . . . . Combat Hostiles . | . . . . . . . . . . . . . . . . . . . . . . . Parts Fried . | . . . . . . . . . . . . . . . . . . . . . . . Impact Corruptions . | . . . . . . . . . . . . . . . . . . . . . . . Robots Melted 12 | . . . . . . 1 . . . 2 1 2 . . . . . 1 . 4 1 . Combat Hostiles 12 | . . . . . . 1 . . . 2 1 2 . . . . . 1 . 4 1 . Parts Melted 44 | . 1 . . . 3 1 1 . . 9 5 8 . . . . . 1 . 10 5 . Heat Transferred 20936 | . 370 666 . . 1686 841 503 . 1150 2810 3000 2964 . . 87 324 . 881 . 3606 2048 . Parts Sabotaged . | . . . . . . . . . . . . . . . . . . . . . . . Parts Stolen . | . . . . . . . . . . . . . . . . . . . . . . . Parts Stripped . | . . . . . . . . . . . . . . . . . . . . . . . Power Chain Reactions . | . . . . . . . . . . . . . . . . . . . . . . . Alert | -11 -10 -10 -10 -9 -8 -8 -8 -7 -7 -6 -6 -6 -6 -6 -5 -5 -5 -5 -5 -4 -4 -4 ------- Run | Yrd Mat Min Exi Min Mat Gar Mat Fac DSF Fac Gar Fac Low Dat Pro Fac Upp Upp Zhi Pro Fac Upp Maximum Alert Level 4 | . . . . . 1 2 2 . 1 1 4 3 . . . . . . . . . . Low Security (%) 46 | 100 100 100 . 100 41 43 5 100 81 63 . . . . . 100 . . . . 100 . Level 1 27 | . . . . . 58 35 91 . 18 36 44 4 . . . . . . . . . . Level 2 17 | . . . . . . 20 2 . . . 13 88 . . . . . . . . . . Level 3 5 | . . . . . . . . . . . 23 6 . . . . . . . . . . Level 4 3 | . . . . . . . . . . . 18 . . . . . . . . . . . Level 5 . | . . . . . . . . . . . . . . . . . . . . . . . High Security . | . . . . . . . . . . . . . . . . . . . . . . . Max Security . | . . . . . . . . . . . . . . . . . . . . . . . Sterilizations 1 | . . . . . . . . . 1 . . . . . . . . . . . . . Peak Influence 1412 | . 117 66 . . 324 504 400 151 231 372 1412 741 . . . 32 . . . . 160 . Initial 741 | . . 26 . . . 161 245 151 8 121 240 741 . . . . . . . . 160 . Average 280 | . 41 14 . . 187 294 324 79 121 135 641 520 . . . 6 . . . . 81 . Influence Increases 6629 | . 357 187 . . 1018 433 490 11 241 867 1242 506 . . 30 112 . 240 . 617 208 70 Destroy 0b10 Robot/C 4000 | . 200 100 . . 620 280 280 . 180 480 540 340 . . 20 60 . 220 . 500 140 40 Destroy 0b10 Robot/NC 75 | . 15 5 . . 10 . 5 . 10 20 . 10 . . . . . . . . . . Destroy Leader 714 | . 44 20 . . 160 10 90 . 30 140 40 70 . . 10 10 . 20 . 40 30 . Allied During Kill 74 | . . . . . . 16 19 . . . 35 2 . . . . . . . 2 . . Successful Hack 254 | . 23 . . . 35 7 16 5 . 87 . 55 . . . 26 . . . . . . Select Force Hacks 30 | . 30 . . . . . . . . . . . . . . . . . . . . . Disable Machine 225 | . 30 15 . . 45 30 15 . . 45 30 15 . . . . . . . . . . Anti-Garrison Action 450 | . . . . . . 50 . . . . 400 . . . . . . . . . . . Destroy Structure 522 | . . 47 . . 88 25 50 6 21 65 152 14 . . . 16 . . . . 38 . Partial Spotted 15 | . . . . . 15 . . . . . . . . . . . . . . . . . Lose Combat Pursuer 270 | . 15 . . . 45 15 15 . . 30 45 . . . . . . . . 75 . 30 Influence Decreases 6569 | . 288 256 . . 769 178 659 334 22 755 173 1333 237 348 30 112 . 158 82 362 463 10 Entered New Map 2204 | . . 43 . . . 88 259 184 4 110 103 671 217 348 . . . . 82 . 95 . Time Decay 3380 | . 278 203 . . 504 . 350 150 . 435 . 612 20 . 30 112 . 158 . 272 246 10 Lost Part 755 | . 10 10 . . 115 70 30 . 18 210 50 30 . . . . . . . 90 122 . Lost Ally 80 | . . . . . . 20 20 . . . 20 20 . . . . . . . . . . Purge Threat 150 | . . . . . 150 . . . . . . . . . . . . . . . . . Squads Dispatched 37 | . 3 . . . 4 . 2 . 1 11 . 10 . . . 2 . . . 1 3 . Investigation 3 | . 1 . . . . . . . . . . 1 . . . 1 . . . . . . Extermination 7 | . . . . . . . . . . 2 . 4 . . . 1 . . . . . . Reinforcement 17 | . 2 . . . 2 . 2 . 1 7 . 2 . . . . . . . . 1 . Assault 3 | . . . . . . . . . . . . . . . . . . . . 1 2 . Garrison 7 | . . . . . 2 . . . . 2 . 3 . . . . . . . . . . Intercept . | . . . . . . . . . . . . . . . . . . . . . . . Searches Triggered . | . . . . . . . . . . . . . . . . . . . . . . . Construction Impeded 4 | . . . . . . . 1 . . 2 . 1 . . . . . . . . . . Haulers Reinforced 1 | . . . . . . . . . . . . 1 . . . . . . . . . . Active Scanning Responses . | . . . . . . . . . . . . . . . . . . . . . . . Cargo Convoy Interrupts . | . . . . . . . . . . . . . . . . . . . . . . . Stealth | -11 -10 -10 -10 -9 -8 -8 -8 -7 -7 -6 -6 -6 -6 -6 -5 -5 -5 -5 -5 -4 -4 -4 --------- Run | Yrd Mat Min Exi Min Mat Gar Mat Fac DSF Fac Gar Fac Low Dat Pro Fac Upp Upp Zhi Pro Fac Upp Distress Signals 12 | . 1 . . . 3 . 2 . . 2 . 4 . . . . . . . . . . Communications Jammed . | . . . . . . . . . . . . . . . . . . . . . . . Distress Signals . | . . . . . . . . . . . . . . . . . . . . . . . Times Spotted 292 | . 20 17 . . 51 15 16 . 9 32 28 25 3 . 1 2 . 11 . 24 27 11 Peak Tracking Total 13 | . 6 3 . . 5 5 3 . 3 8 4 6 3 . 1 1 . 4 . 9 13 8 Tactical Retreats 17 | . 2 2 . . 3 1 1 . . 2 3 . . . . . . . . 2 . 1 Traps | -11 -10 -10 -10 -9 -8 -8 -8 -7 -7 -6 -6 -6 -6 -6 -5 -5 -5 -5 -5 -4 -4 -4 ------- Run | Yrd Mat Min Exi Min Mat Gar Mat Fac DSF Fac Gar Fac Low Dat Pro Fac Upp Upp Zhi Pro Fac Upp Traps Triggered 6 | . . . . . . . . . 1 1 1 3 . . . . . . . . . . Indirectly . | . . . . . . . . . . . . . . . . . . . . . . . Trap Hack Attempts . | . . . . . . . . . . . . . . . . . . . . . . . Triggered . | . . . . . . . . . . . . . . . . . . . . . . . Disarmed . | . . . . . . . . . . . . . . . . . . . . . . . Reprogrammed . | . . . . . . . . . . . . . . . . . . . . . . . Reused . | . . . . . . . . . . . . . . . . . . . . . . . Traps Extracted . | . . . . . . . . . . . . . . . . . . . . . . . Installed . | . . . . . . . . . . . . . . . . . . . . . . . Triggered . | . . . . . . . . . . . . . . . . . . . . . . . Machines | -11 -10 -10 -10 -9 -8 -8 -8 -7 -7 -6 -6 -6 -6 -6 -5 -5 -5 -5 -5 -4 -4 -4 ---------- Run | Yrd Mat Min Exi Min Mat Gar Mat Fac DSF Fac Gar Fac Low Dat Pro Fac Upp Upp Zhi Pro Fac Upp Machines Disabled 22 | . 2 1 . . 3 3 1 . . 3 7 1 . . . . . . . 1 . . Max in Single Turn 2 | . 1 1 . . 1 1 1 . . 2 1 1 . . . . . . . 1 . . Garrison Access 1 | . . . . . . . . . . . . . . . . . . . . . 1 . Garrison Relay 5 | . . . . . . 1 . . . . 4 . . . . . . . . . . . Machines Repaired . | . . . . . . . . . . . . . . . . . . . . . . . Machines Dismantled . | . . . . . . . . . . . . . . . . . . . . . . . Machines Sabotaged . | . . . . . . . . . . . . . . . . . . . . . . . Overloaded Fab Kills . | . . . . . . . . . . . . . . . . . . . . . . . Hacking | -11 -10 -10 -10 -9 -8 -8 -8 -7 -7 -6 -6 -6 -6 -6 -5 -5 -5 -5 -5 -4 -4 -4 --------- Run | Yrd Mat Min Exi Min Mat Gar Mat Fac DSF Fac Gar Fac Low Dat Pro Fac Upp Upp Zhi Pro Fac Upp Machines Accessed 59 | . 7 . 1 . 8 2 6 2 . 8 1 10 . 4 . 3 1 1 5 . . . Terminals 35 | . 6 . . . 7 2 6 1 . 5 1 6 . . . 1 . . . . . . Fabricators . | . . . . . . . . . . . . . . . . . . . . . . . Repair Stations 3 | . . . . . . . . 1 . . . 1 . . . 1 . . . . . . Recycling Units 5 | . 1 . . . . . . . . 2 . 2 . . . . . . . . . . Scanalyzers . | . . . . . . . . . . . . . . . . . . . . . . . Garrison Access 4 | . . . . . 1 . . . . 1 . 1 . . . 1 . . . . . . Total Hacks 178 | . 19 . 1 . 25 6 14 3 . 20 1 33 . 28 . 8 1 1 18 . . . Successful 102 | . 7 . 1 . 14 2 8 1 . 8 1 9 . 28 . 3 1 1 18 . . . Failed 76 | . 12 . . . 11 4 6 2 . 12 . 24 . . . 5 . . . . . . Catastrophic 14 | . 1 . . . 3 . 2 . . 3 . 5 . . . . . . . . . . Database Lockouts . | . . . . . . . . . . . . . . . . . . . . . . . Manual 101 | . 19 . 1 . 20 . 13 2 . 18 . 23 . . . 5 . . . . . . Terminals 100 | . 18 . . . 23 6 14 1 . 12 1 22 . . . 3 . . . . . . Fabricators . | . . . . . . . . . . . . . . . . . . . . . . . Repair Stations 7 | . . . . . . . . 2 . . . 3 . . . 2 . . . . . . Recycling Units 12 | . 1 . . . . . . . . 7 . 4 . . . . . . . . . . Scanalyzers . | . . . . . . . . . . . . . . . . . . . . . . . Garrison Access 10 | . . . . . 2 . . . . 1 . 4 . . . 3 . . . . . . Terminal Hacks 62 | . . . 1 . 6 2 1 1 . . 1 2 . 28 . . 1 1 18 . . . Record 17 | . . . . . . . . . . . . . . 11 . . . . 6 . . . Part Schematic 13 | . . . . . . . . . . . . . . 9 . . . . 4 . . . Robot Schematic 5 | . . . . . . . . . . . . . . 5 . . . . . . . . Robot Analysis 6 | . . . . . 2 . . . . . . . . . . . . . 4 . . . Prototype ID Bank 7 | . . . . . . . . . . . . . . 3 . . . . 4 . . . Open Door 3 | . . . . . . 1 . . . . . . . . . . 1 1 . . . . Open DSF 1 | . . . . . . . . 1 . . . . . . . . . . . . . . Branch Access Points 2 | . . . . . 1 . . . . . . 1 . . . . . . . . . . Emergency Access Points 2 | . . . . . . 1 . . . . 1 . . . . . . . . . . . Terminal Index 3 | . . . . . 1 . 1 . . . . 1 . . . . . . . . . . Unreport Threat 1 | . . . . . 1 . . . . . . . . . . . . . . . . . Zone Layout 1 | . . . . . 1 . . . . . . . . . . . . . . . . . Proto ID Catalog 1 | . . . 1 . . . . . . . . . . . . . . . . . . . Fabricator Hacks . | . . . . . . . . . . . . . . . . . . . . . . . Repair Station Hacks . | . . . . . . . . . . . . . . . . . . . . . . . Recycling Unit Hacks . | . . . . . . . . . . . . . . . . . . . . . . . Scanalyzer . | . . . . . . . . . . . . . . . . . . . . . . . Garrison Access Hacks 3 | . . . . . 1 . . . . 1 . . . . . 1 . . . . . . Unlock Access 3 | . . . . . 1 . . . . 1 . . . . . 1 . . . . . . Unauthorized Hacks 37 | . 7 . . . 7 . 7 . . 7 . 7 . . . 2 . . . . . . Terminals 30 | . 6 . . . 7 . 7 . . 3 . 6 . . . 1 . . . . . . Assimilate 1 | . 1 . . . . . . . . . . . . . . . . . . . . . Botnet 11 | . 1 . . . 2 . 2 . . 2 . 3 . . . 1 . . . . . . Skim 18 | . 4 . . . 5 . 5 . . 1 . 3 . . . . . . . . . . Fabricators . | . . . . . . . . . . . . . . . . . . . . . . . Repair Stations 1 | . . . . . . . . . . . . . . . . 1 . . . . . . Patch 1 | . . . . . . . . . . . . . . . . 1 . . . . . . Recycling Units 6 | . 1 . . . . . . . . 4 . 1 . . . . . . . . . . Reject 2 | . . . . . . . . . . 2 . . . . . . . . . . . . Recyclers 3 | . . . . . . . . . . 2 . 1 . . . . . . . . . . Tunnel 1 | . 1 . . . . . . . . . . . . . . . . . . . . . Scanalyzers . | . . . . . . . . . . . . . . . . . . . . . . . Garrison Access . | . . . . . . . . . . . . . . . . . . . . . . . Data Cores Recovered 1 | . . . . . . . 1 . . . . . . . . . . . . . . . Used 1 | . . . . . . . 1 . . . . . . . . . . . . . . . Hacking Detections 42 | . 6 . . . 7 2 6 2 . 7 . 10 . . . 2 . . . . . . Full Trace Events 1 | . . . . . . . . . . . . 1 . . . . . . . . . . Feedback Events . | . . . . . . . . . . . . . . . . . . . . . . . Feedback Blocked . | . . . . . . . . . . . . . . . . . . . . . . . Robot Schematics Acquired 5 | . . . . . . . . . . . . . . 5 . . . . . . . . Robots Built . | . . . . . . . . . . . . . . . . . . . . . . . Authchips . | . . . . . . . . . . . . . . . . . . . . . . . Time . | . . . . . . . . . . . . . . . . . . . . . . . Total Robot Build Rating . | . . . . . . . . . . . . . . . . . . . . . . . Part Schematics Acquired 13 | . . . . . . . . . . . . . . 9 . . . . 4 . . . Parts Built . | . . . . . . . . . . . . . . . . . . . . . . . Authchips . | . . . . . . . . . . . . . . . . . . . . . . . Time . | . . . . . . . . . . . . . . . . . . . . . . . Total Part Build Rating . | . . . . . . . . . . . . . . . . . . . . . . . Parts Repaired . | . . . . . . . . . . . . . . . . . . . . . . . Time . | . . . . . . . . . . . . . . . . . . . . . . . Parts Recycled . | . . . . . . . . . . . . . . . . . . . . . . . Recycled Matter . | . . . . . . . . . . . . . . . . . . . . . . . Retrieved Matter . | . . . . . . . . . . . . . . . . . . . . . . . Retrieved Components . | . . . . . . . . . . . . . . . . . . . . . . . Parts Scanalyzed . | . . . . . . . . . . . . . . . . . . . . . . . Part Schematics Acquired . | . . . . . . . . . . . . . . . . . . . . . . . Parts Damaged . | . . . . . . . . . . . . . . . . . . . . . . . Bothacking | -11 -10 -10 -10 -9 -8 -8 -8 -7 -7 -6 -6 -6 -6 -6 -5 -5 -5 -5 -5 -4 -4 -4 ------------ Run | Yrd Mat Min Exi Min Mat Gar Mat Fac DSF Fac Gar Fac Low Dat Pro Fac Upp Upp Zhi Pro Fac Upp Used RIF Installer . | . . . . . . . . . . . . . . . . . . . . . . . Robots Hacked . | . . . . . . . . . . . . . . . . . . . . . . . Non-combat . | . . . . . . . . . . . . . . . . . . . . . . . Combat . | . . . . . . . . . . . . . . . . . . . . . . . Robot Hacks Applied . | . . . . . . . . . . . . . . . . . . . . . . . Relay Couplers Released 20 | . . . . . . 3 . . . . 16 . . . . . . . . . 1 . Machine Destruction 20 | . . . . . . 3 . . . . 16 . . . . . . . . . 1 . Fabnet Peak Effective % . | . . . . . . . . . . . . . . . . . . . . . . . Robots Rewired 4 | . . . . . . 2 . . . . . . . . . . . . . 2 . . Allies Hacked . | . . . . . . . . . . . . . . . . . . . . . . . Hacks Repelled . | . . . . . . . . . . . . . . . . . . . . . . . Allies | -11 -10 -10 -10 -9 -8 -8 -8 -7 -7 -6 -6 -6 -6 -6 -5 -5 -5 -5 -5 -4 -4 -4 -------- Run | Yrd Mat Min Exi Min Mat Gar Mat Fac DSF Fac Gar Fac Low Dat Pro Fac Upp Upp Zhi Pro Fac Upp Total Allies 7 | . . . . 1 . 2 . . . . 2 . . . . . . . . 2 . . Largest Group 2 | . . . . . 1 2 1 . . . 2 1 . . . . . . . 2 . . Highest-Rated Group 142 | . . . . . 31 64 39 . . . 142 80 . . . . . . . 77 . . Highest-Rated Ally 80 | . . . . . 31 39 39 . . . 80 80 . . . . . . . 47 . . Initial Warlord ECA Mod 259 | . . . . . . . 5 4 4 13 13 21 21 21 20 20 20 20 20 19 19 19 Total Orders . | . . . . . . . . . . . . . . . . . . . . . . . Ally Attacks 67 | . . . . . 10 23 9 . . . 18 4 . . . . . . . 3 . . Total Damage 1595 | . . . . . 149 244 106 . . . 697 201 . . . . . . . 198 . . Kills 18 | . . . . . . 5 4 . . . 7 1 . . . . . . . 1 . . Allies Corrupted . | . . . . . . . . . . . . . . . . . . . . . . . Allies Melted . | . . . . . . . . . . . . . . . . . . . . . . . Intel | -11 -10 -10 -10 -9 -8 -8 -8 -7 -7 -6 -6 -6 -6 -6 -5 -5 -5 -5 -5 -4 -4 -4 ------- Run | Yrd Mat Min Exi Min Mat Gar Mat Fac DSF Fac Gar Fac Low Dat Pro Fac Upp Upp Zhi Pro Fac Upp Active Infowar (turns) 3225 | . . . . . . . . . . . . . . . 178 430 551 504 324 742 496 . Terrain 3225 | . . . . . . . . . . . . . . . 178 430 551 504 324 742 496 . Robot Analysis Total 6 | . . . . . 2 . . . . . . . . . . . . . 4 . . . Derelict Logs Recovered 8 | . . . . 1 . . . . . . . . . . 1 . 2 1 . 1 . 2 Drone Launches . | . . . . . . . . . . . . . . . . . . . . . . . Drone Recoveries . | . . . . . . . . . . . . . . . . . . . . . . . Exploration | -11 -10 -10 -10 -9 -8 -8 -8 -7 -7 -6 -6 -6 -6 -6 -5 -5 -5 -5 -5 -4 -4 -4 ------------- Run | Yrd Mat Min Exi Min Mat Gar Mat Fac DSF Fac Gar Fac Low Dat Pro Fac Upp Upp Zhi Pro Fac Upp Turns Passed 15127 | 80 1017 847 234 249 1505 382 795 309 327 1426 2071 2002 46 125 262 488 593 504 324 834 578 129 Spaces Moved 7840 | 44 532 468 212 226 788 181 425 216 136 846 750 872 30 80 153 265 373 289 157 267 291 239 Core 304 | 4 . . . . . . . . . . . . . . . . . . . . 61 239 Treads 4909 | 40 532 413 . . 347 . 28 . 120 151 750 872 30 80 153 265 373 289 157 267 42 . Legs . | . . . . . . . . . . . . . . . . . . . . . . . Wheels 2627 | . . 55 212 226 441 181 397 216 16 695 . . . . . . . . . . 188 . Hover . | . . . . . . . . . . . . . . . . . . . . . . . Flight . | . . . . . . . . . . . . . . . . . . . . . . . Fastest Speed 50 | 50 160 110 110 110 80 95 105 105 105 105 157 158 158 158 158 155 155 155 155 150 50 50 Average Speed 146 | 150 160 154 110 110 127 106 121 105 159 125 171 185 158 158 158 157 155 155 193 202 141 50 Slowest Speed 320 | 160 160 160 110 110 240 125 240 105 320 240 175 238 158 158 158 237 155 155 238 235 232 50 Overloaded Moves . | . . . . . . . . . . . . . . . . . . . . . . . Propulsion Burnouts . | . . . . . . . . . . . . . . . . . . . . . . . Robots Hopped . | . . . . . . . . . . . . . . . . . . . . . . . Potential Cave-ins 6 | . . . . . . . . . . 6 . . . . . . . . . . . . Cave-ins Triggered . | . . . . . . . . . . . . . . . . . . . . . . . Teleports 1 | . . . . . . . . . . . . . . . . . . . . . . 1 Exploration Rate (%) 46 | 4 71 93 60 65 71 35 40 8 92 28 94 22 7 69 31 7 60 51 61 46 8 40 Regions Visited 22 Branch Regions 11 Pre-discovered Areas 14 | . 1 . . 1 2 . 4 . . . . . . 1 . . 2 . 3 . . . Known Exits Taken 11 | . . . . . 1 . 1 1 . 1 . 1 1 1 1 1 1 . . . 1 . Unknown Exits Taken 8 | 1 1 1 1 1 . . . . . . . . . . . . . 1 1 1 . . Scrap Searched 10 | . . 1 . 1 . . . . . . . . . . 1 . 1 3 . 1 . 2 Spaces Dug 49 | . . . . . 14 . 11 7 . 4 . 1 . . . 6 1 . . . 5 . Terrain Destroyed 488 | . . 67 . . 85 . 48 7 23 82 1 11 . . . 7 1 21 . 116 19 . Melee 5 | . . . . . . . . 5 . . . . . . . . . . . . . . Projectile 124 | . . 2 . . 26 . 15 2 . 7 . 11 . . . 7 1 5 . 29 19 . AOE 358 | . . 65 . . 59 . 33 . 23 75 . . . . . . . 16 . 87 . . Terrain Rammed . | . . . . . . . . . . . . . . . . . . . . . . . Walls Destroyed . | . . . . . . . . . . . . . . . . . . . . . . . Machines Disabled . | . . . . . . . . . . . . . . . . . . . . . . . Actions | -11 -10 -10 -10 -9 -8 -8 -8 -7 -7 -6 -6 -6 -6 -6 -5 -5 -5 -5 -5 -4 -4 -4 --------- Run | Yrd Mat Min Exi Min Mat Gar Mat Fac DSF Fac Gar Fac Low Dat Pro Fac Upp Upp Zhi Pro Fac Upp Total 10511 | 55 644 527 213 227 1111 291 660 285 196 1108 1369 1163 29 79 170 319 389 318 179 478 455 246 Wait 1445 | . 43 11 . . 182 11 196 49 . 126 468 198 . . 13 20 4 8 . 36 80 . Move 7821 | 43 531 467 211 225 788 180 424 216 135 846 749 871 29 79 152 264 372 288 156 266 290 239 Hop . | . . . . . . . . . . . . . . . . . . . . . . . Pick Up 154 | 6 15 5 1 1 15 4 5 3 9 24 17 12 . . 1 8 4 3 3 7 10 1 Fast Attach 73 | 6 3 1 . . 10 3 1 1 7 16 7 6 . . . 1 2 . 9 . . . Attach 77 | . 2 2 . . 8 3 3 . 3 15 4 6 . . 1 6 . 1 . 10 11 2 Detach 5 | . 1 . . . . . . . . . 1 1 . . . 1 . . . . 1 . Swap 61 | . 3 3 . . 10 5 3 3 4 10 7 3 . . 2 2 . 2 . 4 . . Drop 116 | . 14 4 1 1 6 1 1 3 10 19 8 16 . . . 5 6 3 11 3 4 . Fire 618 | . 32 34 . . 92 51 27 5 28 52 108 46 . . 1 12 1 13 . 54 58 4 Melee 5 | . . . . . . . . 5 . . . . . . . . . . . . . . Ram 1 | . . . . . . . . . . . . . . . . . . . . . 1 . Kick . | . . . . . . . . . . . . . . . . . . . . . . . Crush . | . . . . . . . . . . . . . . . . . . . . . . . Escape Stasis 4 | . . . . . . . . . . . . 4 . . . . . . . . . . Rewire 131 | . . . . . . 33 . . . . . . . . . . . . . 98 . . Trap . | . . . . . . . . . . . . . . . . . . . . . . . Miscellaneous . | . . . . . . . . . . . . . . . . . . . . . . . Route ------- -11/Scrapyard -10/Materials (discovered 3 exits: [*Mat x2] / [*Min]) -10/Mines (discovered 4 exits: [*Mat x2] / *Exi / [*Sub]) -10/Exiles -9/Mines -8/Materials (discovered 3 exits: *Fac x2 / Gar) -8/Garrison -8/Materials (discovered 3 exits: *Fac x3) -7/Factory (discovered 2 exits: Low / DSF) -7/DSF -6/Factory -6/Garrison (discovered 3 exits: *Fac x3) -6/Factory (discovered 3 exits: *Fac / *Low x2) -6/Lower Caves -6/Data Miner -5/Proximity Caves -5/Factory (discovered 2 exits: *Upp / Gar) -5/Upper Caves -5/Upper Caves -5/Zhirov -4/Proximity Caves -4/Factory (discovered 3 exits: *Res x2 / *Upp) -4/Upper Caves (discovered 1 exit: Upp) History --------- Turn | Location | Event 3 | -11/Scrapyard | Discovered new exit (range 16) 81 | -11/Scrapyard | Entered Materials 300 | -10/Materials | Build established: Mutant 330 | -10/Materials | Discovered new exit (range 5) 410 | -10/Materials | Discovered new exit (range 9) 681 | -10/Materials | Derelicts attacked the area 705 | -10/Materials | Discovered new exit (range 10) 1098 | -10/Materials | Entered Mines 1112 | -10/Mines | Core integrity fell below 50% 1139 | -10/Mines | Assembled infested the area 1144 | -10/Mines | Assisted by a Guerilla fighting off Assembled 1425 | -10/Mines | Core integrity fell below 20% 1608 | -10/Mines | Discovered new exit (range 15) 1717 | -10/Mines | Discovered new exit (range 12) 1753 | -10/Mines | A weapon hastily lodged in a ceiling crevice suddenly fell to the ground 1803 | -10/Mines | Discovered new exit (range 5) 1880 | -10/Mines | Received a Rocket Launcher from a helpful Derelict 1918 | -10/Mines | Found a hidden stash of uninstalled traps 1940 | -10/Mines | Deemed a non-threat by the Exiles lab entrance 1940 | -10/Mines | Discovered new exit (range 5) 1945 | -10/Mines | Entered Exiles 1972 | -10/Exiles | Met 8R-AWN 1991 | -10/Exiles | Met EX-HEX 2024 | -10/Exiles | Met EX-BIN 2040 | -10/Exiles | Aligned with FarCom system 2041 | -10/Exiles | Given EX-Vault access code 2066 | -10/Exiles | Opened EX-Vault 2074 | -10/Exiles | Found Superbattery 2097 | -10/Exiles | Warned to stay clear of 0b10 Research branches 2127 | -10/Exiles | Met EX-DEC 2166 | -10/Exiles | Discovered new exit (range 14) 2179 | -10/Exiles | Left Exiles lab with Superbattery 2179 | -10/Exiles | Entered Mines 2204 | -9/Mines | Learned location of Zion (-7) 2357 | -9/Mines | Found a damaged Exp. Sensor Array with a note attached 2359 | -9/Mines | Found Prototype Device 2412 | -9/Mines | Discovered new exit (range 15) 2424 | -9/Mines | Received a Mining Laser from a helpful Derelict 2428 | -9/Mines | Entered Materials 2428 | -8/Materials | Accompanied by 1 ally 2428 | -8/Materials | Evolved 4 slots: Propulsion x2, Utility x2 2578 | -8/Materials | Lost 4 parts (1p2n1u) 3279 | -8/Materials | Discovered new exit (range 13) 3393 | -8/Materials | Build established: Scavenger-Mutant 3641 | -8/Materials | Learned location of 1 exit from Recycling 3670 | -8/Materials | Learned Factory trap positions 3689 | -8/Materials | Learned 4 Lower Caves zone layouts 3699 | -8/Materials | Learned Factory machine intel 3751 | -8/Materials | Learned location of Extension (-4) 3803 | -8/Materials | Garrison activated, responded to threat 3896 | -8/Materials | Discovered new exit (range 16) 3933 | -8/Materials | Identified exit to Garrison 3933 | -8/Materials | Entered Garrison 4006 | -8/Garrison | Lost 5 parts (1p3n1u) 4095 | -8/Garrison | Triggered checkpoint 4105 | -8/Garrison | Garrison Relay disabled 4138 | -8/Garrison | Core integrity fell below 50% 4231 | -8/Garrison | Triggered checkpoint 4233 | -8/Garrison | Triggered checkpoint 4307 | -8/Garrison | Discovered new exit (range 7) 4315 | -8/Garrison | Entered Materials 4315 | -8/Materials | Accompanied by 1 ally 4598 | -8/Materials | Discovered new exit (range 14) 4888 | -8/Materials | Discovered new exit (range 3) 5010 | -8/Materials | Identified exit to Factory 5033 | -8/Materials | Learned location of 1 exit from Extension 5054 | -8/Materials | Learned Storage trap positions 5081 | -8/Materials | Learned Storage emergency access door positions 5110 | -8/Materials | Entered Factory 5110 | -7/Factory | Evolved 2 slots: Utility x2 5111 | -7/Factory | Identified exit to Lower Caves 5112 | -7/Factory | Loaded intel: 108 trap records 5113 | -7/Factory | Loaded intel: 261 machine locations 5419 | -7/Factory | Identified exit to DSF 5419 | -7/Factory | Entered DSF 5458 | -7/DSF | Additional patrols routed to DSF 5514 | -7/DSF | Lost 4 parts (1p3n) 5597 | -7/DSF | Discovered new exit (range 14) 5700 | -7/DSF | Build established: Mutant 5712 | -7/DSF | Sterilization system engaged 5732 | -7/DSF | Ambient heat levels rising (+10) 5746 | -7/DSF | Entered Factory 5746 | -6/Factory | Evolved 2 slots: Utility x1, Weapon x1 6074 | -6/Factory | Build established: Tank 6486 | -6/Factory | Lost 13 parts (1p2n6u4w) 6661 | -6/Factory | Build established: Mutant 6966 | -6/Factory | Build established: Scavenger-Skirmisher 7054 | -6/Factory | Garrison activated, responded to threat 7076 | -6/Factory | Core integrity fell below 50% 7133 | -6/Factory | Destroyed 9 combat bots 7136 | -6/Factory | Lost 6 parts (1p2n1u2w) 7172 | -6/Factory | Identified exit to Garrison 7172 | -6/Factory | Entered Garrison 7396 | -6/Garrison | Found Fusion Bomb Launcher 7704 | -6/Garrison | Build established: Scavenger-Tank 7908 | -6/Garrison | Triggered checkpoint 7993 | -6/Garrison | Triggered checkpoint 8091 | -6/Garrison | Spotted B-75 Beast 8132 | -6/Garrison | Destroyed B-75 Beast 8149 | -6/Garrison | Lost 3 parts (3u) 8396 | -6/Garrison | Triggered checkpoint 8453 | -6/Garrison | Discovered new exit (range 3) 8489 | -6/Garrison | Found embedded Infiltrators 8556 | -6/Garrison | Garrison Relay disabled 8578 | -6/Garrison | Garrison Relay disabled 8756 | -6/Garrison | Triggered checkpoint 8772 | -6/Garrison | Triggered checkpoint 8853 | -6/Garrison | Garrison Relay disabled 8868 | -6/Garrison | Triggered checkpoint 8993 | -6/Garrison | Discovered new exit (range 15) 9157 | -6/Garrison | Garrison Relay disabled 9196 | -6/Garrison | Discovered new exit (range 15) 9220 | -6/Garrison | Triggered checkpoint 9243 | -6/Garrison | Entered Factory 9243 | -6/Factory | Accompanied by 1 ally 9268 | -6/Factory | Discovered new exit (range 8) 9465 | -6/Factory | Identified exit to Factory 9577 | -6/Factory | Identified exit to Lower Caves 10917 | -6/Factory | Core integrity fell below 20% 10930 | -6/Factory | Garrison activated, responded to threat 10985 | -6/Factory | Destroyed 7 combat bots 11245 | -6/Factory | Entered Lower Caves 11246 | -6/Lower Caves | A Derelict revealed a hidden shortcut to meet someone special 11250 | -6/Lower Caves | Identified exit to Data Miner 11274 | -6/Lower Caves | Attracted the attention of an 0b10 checkpoint 11291 | -6/Lower Caves | Entered Data Miner 11291 | -6/Data Miner | Discovered new exit (range 6) 11322 | -6/Data Miner | Met Data Miner 11350 | -6/Data Miner | Learned location of Section 7 (-2) 11350 | -6/Data Miner | Acquired the access code to Warlord's prototype stash 11377 | -6/Data Miner | Received God Mode back door access code from Data Miner 11415 | -6/Data Miner | Identified exit to Proximity Caves 11416 | -6/Data Miner | Entered Proximity Caves 11514 | -5/Proximity Caves | Learned Factory trap positions 11665 | -5/Proximity Caves | Discovered exit to Factory (range 10) 11678 | -5/Proximity Caves | Entered Factory 11678 | -5/Factory | Evolved 2 slots: Propulsion x1, Utility x1 11679 | -5/Factory | Loaded intel: 109 trap records 11713 | -5/Factory | Discovered new exit (range 11) 11728 | -5/Factory | Identified exit to Upper Caves 11989 | -5/Factory | Build established: Skirmisher 12022 | -5/Factory | Identified exit to Garrison 12166 | -5/Factory | Entered Upper Caves 12202 | -5/Upper Caves | Met a Warlord Commander 12203 | -5/Upper Caves | Learned location of Warlord (-4) 12204 | -5/Upper Caves | Warlord Commander delivered Encrypted Comm Array 12209 | -5/Upper Caves | Found Encrypted Comm Array 12450 | -5/Upper Caves | Build established: Tank 12522 | -5/Upper Caves | Learned location of Armory (-3) 12618 | -5/Upper Caves | Encountered a Warlord checkpoint 12623 | -5/Upper Caves | Learned location of 1 exit from Factory 12717 | -5/Upper Caves | Discovered new exit (range 11) 12757 | -5/Upper Caves | Identified exit to Upper Caves 12759 | -5/Upper Caves | Entered another Upper Caves area 12761 | -5/Upper Caves | Attracted the attention of an 0b10 checkpoint 12997 | -5/Upper Caves | Learned 4 Factory zone layouts 13255 | -5/Upper Caves | Discovered new exit (range 5) 13263 | -5/Upper Caves | Entered Zhirov 13263 | -5/Zhirov | Discovered new exit (range 3) 13291 | -5/Zhirov | Met Zhirov 13331 | -5/Zhirov | Found Alien Artifact 13349 | -5/Zhirov | Found Alien Artifact 13349 | -5/Zhirov | Identified Integrated Reactor 13349 | -5/Zhirov | Installed Integrated Reactor, increased core energy generation (+10) 13493 | -5/Zhirov | Learned location of Quarantine (-2) 13493 | -5/Zhirov | Learned location of Testing (-3) 13493 | -5/Zhirov | Learned location of Command (-1) 13517 | -5/Zhirov | Zhirov requested help retrieving the SGEMP Prototype 13587 | -5/Zhirov | Entered Proximity Caves 13768 | -4/Proximity Caves | Attracted the attention of an 0b10 outpost 13880 | -4/Proximity Caves | Lost 4 parts (2n2u) 13883 | -4/Proximity Caves | Destroyed 8 combat bots 14104 | -4/Proximity Caves | P-70 Sage assimilated allied Veteran 7a 14109 | -4/Proximity Caves | P-70 Sage assimilated allied Warrior 7a 14136 | -4/Proximity Caves | Learned Research stockpile data 14159 | -4/Proximity Caves | Build established: Scavenger-Skirmisher 14360 | -4/Proximity Caves | Discovered new exit (range 13) 14389 | -4/Proximity Caves | Lost 3 parts (1n2u) 14421 | -4/Proximity Caves | Entered Factory 14421 | -4/Factory | Evolved 2 slots: Propulsion x1, Utility x1 14422 | -4/Factory | Identified exit to Upper Caves 14423 | -4/Factory | Identified exit to Research 14483 | -4/Factory | Build established: Skirmisher 14570 | -4/Factory | Found Quantum Capacitor 14632 | -4/Factory | Discovered exit to Research (range 13) 14984 | -4/Factory | Core integrity fell below 50% 14994 | -4/Factory | Lost 16 parts (1p4n6u5w) 14999 | -4/Factory | Entered Upper Caves 14999 | -4/Upper Caves | Identified Transdimensional Reconstructor 14999 | -4/Upper Caves | Warped through subspace 15075 | -4/Upper Caves | Identified exit to Upper Caves 15109 | -4/Upper Caves | Core integrity fell below 20% 15114 | -4/Upper Caves | Attracted the attention of an 0b10 checkpoint 15128 | -4/Upper Caves | Destroyed by S-27 Virus with Autogun Last Messages --------------- 15051_ Searching scrap... 15051_ Found Imp. Actuator Array. 15051_ Found 53 Matter. 15075_ Acquired derelict log, extracted data. Loading 1 Upper Caves exit... 15114_ Y-64 Sentinel: "INTERCEPTING UNREGISTERED DERELICT." 15115_ Penetrated by Slug. 15119_ Slug penetrates Wall. 15122_ Penetrated by Slug. 15124_ Slug penetrates S-27 Virus. 15124_ S-27 Virus destroyed. 15124_ S-27 Virus suffers critical hit (Destroy). 15124_ S-27 Virus destroyed. 15126_ Slug penetrates S-27 Virus. 15127_ Slug penetrates G-67 Veteran. 15128_ Lgt. Nuclear Core fries itself beyond repair. 15128_ Slug penetrates S-27 Virus. Map ----- +----------------------------------------------------+ | ??????????????????????????# #?# ## #??# # | | ??????????????????????????# ##?# #??### | | ??????????????????????????####??## #????## | | ?????????????????????????????????## #####? ???# # | | ??????????????????????????????????# #???? #???# # | | ??????????????????????????????????# #??? ????# # | | ??????????????????????????######### #??? ????# # | | ????????????????####??????# #?? ?????# # | | ????????????????# ##????# ##########? #?????# # | | ???????????????## ????# #????????? # ##????# | | ???????????????# ##### #????????# ###??### | | ??????????????## # ######### # # ##???? | | ???????????#### # # #???? | | ??????????? # # #??????? | | ???????????? ########## ## #?????? | | ???????????????# ######### ## #?????? | | ????????????????# #????? | | ??????????????????# Y ########## ###???# | | ??????????????????## ######???## #???# | | ???????????????????# g #???# #??? # | | ???????????????????## #??# ## #???## | | ????????????????????#####sss #?# ### ##???# | | ????????????????????????#=s ##?## ##?# #???# | | ????????????????????????#*%###???###??# #??? | | ????????????????????????#%=#??????????# ##??? | | ?>??????????????????????#@ #??????????# #???? | | ????????????????????????# #?????????? #???? | | ????????????????????????# #?????????? #???? | | ????????????????????????# #????????? ???? | | ????????????????????????# ????????? ??? | | ???????????????????????? ???????? ## ?? | | ???????????????????????? ??????? ##? ? | | ???????????????????????? ?????? #??? | | ???????????????????????? ????? #???? | | ???????????????????????? ???? ### ????? | | ????????????????????????# ??? #??? ????? | | ????????????????????????? ###???????? ????? | | ????????????????????????? ##?????????? ??????? | | ????????????????????????? #??????????????????????? | | ?????????????????????????#???????????????????????? | | ?????????????????????????????????????????????????? | | ?????????????????????????????????????????????????? | | ?????????????????????????????????????????????????? | | ?????????????????????????????????????????????????? | | ?????????????????????????????????????????????????? | | ?????????????????????????????????????????????????? | | ?????????????????????????????????????????????????? | | ?????????????????????????????????????????????????? | | ?????????????????????????????????????????????????? | | ?????????????????????????????????????????????????? | +----------------------------------------------------+ Best States ------------- Heat Dissipation 105 Coolant Potential 65 Energy Generation 35 Energy Capacity 340 Matter Stores 300 Matter Capacity 300 Sight Range 16 Terrain Scan Range 20 Terrain Scan Density 210 Armor Coverage 1650 Weapon Cycling 20 Evasion (%) 50 Targeting Accuracy 16 Recoil Reduction 5 Defensive Hacking 10 Item Schematics ----------------- Combat Drone Bay | -6/Data Miner | Free Lgt. Regenerative Plating | -6/Data Miner | Free Cld. Gravmag System | -6/Data Miner | Free Imp. Energy Well | -6/Data Miner | Free Neutron Cannon | -6/Data Miner | Free Imp. Gyrokinetic Inverter | -6/Data Miner | Free Imp. Point Defense System | -6/Data Miner | Free Matter Neutralizer | -6/Data Miner | Free Arm. Medium Treads | -6/Data Miner | Free Assault Drone Bay | -5/Zhirov | Free Exp. Heat Sink | -5/Zhirov | Free Exp. Optical Array | -5/Zhirov | Free Imp. Arc Thrower | -5/Zhirov | Free Robot Schematics ------------------ D-63 Destroyer | -6/Data Miner | Free E-15 Imp | -6/Data Miner | Free L-41 Fighter | -6/Data Miner | Free B-60 Warrior | -6/Data Miner | Free R-10 Processor | -6/Data Miner | Free Fabricated ------------ Nothing Repaired ---------- Nothing Alien Tech Used ----------------- Integrated Reactor Transdimensional Reconstructor Achievements -------------- None Challenges ------------ None Game ------ Seed MagneticAlphaArray Manual? 0 Play Time 04:02:38 Cumulative 284.1 hours Start 2025.08.01 @ 12:35:44 End 2025.08.02 @ 15:14:41 Sessions 7 Manual Loads 0 Difficulty Rogue Special Mode None Game No. 241 Rogue 241 Adventurer 0 Explorer 0 Win Type - Total 1 Types 1/0/0/0/0/0/0/0/0/0 Lore% 78 Gallery% 66 Achievement% 56 Wizard Run 0 Options --------- Layout 1 ASCII 0 Keyboard 0 Movement Mouse Keybinds 0 Fullscreen 1 Font 24/Smallcaps Map View 50x35 Zoom Use 0% Tactical HUD 1 Map Filters NONE Filters NONE Steam 1 RUN: bc18e087-675a-4cec-92c2-02b2a52834da